[Event "Polish University-ch Open 2024"]
[Site "Lublin"]
[Date "2024.02.24"]
[Round "7.9"]
[White "Golecki, Jan"]
[Black "Chylewski, Patryk"]
[Result "0-1"]
[ECO "B53"]
[WhiteElo "2185"]
[BlackElo "2285"]
[Annotator "TA"]
[PlyCount "170"]
[EventDate "2024.02.22"]
[EventType "swiss"]
[EventCountry "POL"]
[SourceTitle "playchess.com"]
[Source "ChessBase"]
[SourceQuality "1"]
[TimeControl "600+3"]

{[%evp 10,170,27,36,37,33,31,18,31,14,8,12,24,0,13,0,0,5,11,11,49,43,60,46,63,70,71,1,0,0,42,15,29,28,39,37,26,22,52,56,62,56,57,14,24,0,14,0,14,0,0,0,0,0,0,0,-8,-35,-35,-37,-35,-39,-8,-15,0,0,0,-10,-10,-26,-25,-28,-24,-33,-27,-18,-19,-1034,-68,-80,-80,-144,-144,-218,-199,-175,-180,-170,-124,-116,-66,-212,-47,-918,-911,-865,-8,-8,-8,-8,-8,-31,-21,-20,-32,-5102,-800,-4698,-739,-29976,-29971,-29975,-29977,-29976,-29977,-29973,-29973,-29973,-29974,-29977,-29978,-29977,-29974,-29976,-29968,-29972,-29969,-29970,-29972,-29970,-29972,-29971,-29973,-29978,-29978,-29977,-29977,-29980,-29979,-29986,-29981,-29985,-29986,-29985,-29986,-29986,-29983,-29985,-29986,-29986,-29986,-29985,-29986,-29986,-29986,-29987,-29986,-29995,-29996,-29997,-29998,-29998,-29999]} 1. e4 {[%emt 0:00:23]} c5 {[%emt 0:00:03]} 2. Nf3 {[%emt 0:00:08]} d6 {[%emt 0:00:01]} 3. d4 {[%emt 0:00:02]} cxd4 {[%emt 0:00:02]} 4. Qxd4 {[%emt 0:00:02]} a6 {[%emt 0:00:04]} 5. c4 {[%emt 0:00:02]} Nc6 {[%emt 0:00:01]} 6. Qe3 {[%emt 0:00:01]} g6 {[%emt 0:00:14]} 7. Be2 {[%emt 0:00:02]} Bg7 {[%emt 0:00:03]} 8. O-O {[%emt 0:00:02]} Bg4 {[%emt 0:00:07] Die Stellung ist ausgeglichen.} 9. Nc3 {[%emt 0:00:10]} Nf6 {[%emt 0:00:05][%cal Bg8f6,Bf6d7,Bd7b6][%mdl 32]} 10. Rd1 {[%emt 0:00:49]} Nd7 {[%emt 0:00:19]} 11. b3 {[%emt 0:00:58]} O-O {[%emt 0:00:06]} 12. Rb1 {[%emt 0:00:19]} Bxf3 {[%emt 0:00:20]} 13. Bxf3 {[%emt 0:00:02]} b5 {[%emt 0:00:15]} 14. Be2 {[%emt 0:01:15]} bxc4 {[%emt 0:01:06]} 15. Bxc4 {[%emt 0:00:02]} Nb6 {[%emt 0:00:42]} 16. Be2 {[%emt 0:00:14]} a5 {[%emt 0:00:19]} 17. Bb2 {[%emt 0:00:18]} Qc7 {[%emt 0:02:19]} 18. Nd5 {[%emt 0:01:32]} (18. h4 $16) 18... Nxd5 $11 {[%emt 0:00:01]} 19. exd5 {[%emt 0:00:02]} Ne5 {[%emt 0:00:44]} 20. Bb5 {[%emt 0:00:41]} (20. a4 $5) 20... Ng4 {[%emt 0:00:54]} 21. Qe2 {[%emt 0:00:07]} Bxb2 {[%emt 0:00:02]} 22. Rxb2 {[%emt 0:01:10]} Nf6 {[%emt 0:00:02] Schwarz ist schwach auf den weissen Feldern} 23. Rc2 {[%emt 0:00:03]} Qd8 {[%emt 0:00:47]} 24. Bc6 {[%emt 0:00:23]} Ra7 {[%emt 0:00:04]} 25. Qe3 {[%emt 0:00:32]} Qb8 {[%emt 0:00:08]} 26. f3 {[%emt 0:00:23] Gegen Ng4 gerichtet.} Rc7 {[%emt 0:00:02]} 27. g4 {[%emt 0:00:44]} Qa7 {[%emt 0:01:16]} 28. Kf2 {[%emt 0:00:18]} (28. Qxa7 {vereinfacht} Rxa7 29. Rc4 Nd7 30. Bxd7 Rxd7 31. Rdc1) 28... Rfc8 {[%emt 0:00:16]} 29. Qxa7 {[%emt 0:00:09]} Rxa7 {[%emt 0:00:01]} 30. Rc4 {[%emt 0:00:01]} Nd7 {[%emt 0:00:22]} 31. Bxd7 {[%emt 0:00:29]} Rxc4 {[%emt 0:00:01]} 32. bxc4 {[%emt 0:00:01]} Rxd7 {[%emt 0:00:53][%mdl 4096] Endspiel. KR-KR} 33. Rb1 {[%emt 0:00:02]} Rc7 {[%emt 0:00:00]} 34. Rb5 {[%emt 0:00:01]} Rxc4 {[%emt 0:00:00]} 35. Rxa5 {[%emt 0:00:01]} g5 {[%emt 0:00:00]} 36. Ra7 {[%emt 0:00:07]} Kf8 {[%emt 0:00:00]} 37. a4 {[%emt 0:00:01]} Rc5 {[%emt 0:00:00]} 38. Ra8+ {[%emt 0:00:05]} Kg7 {[%emt 0:00:00]} 39. Rb8 {[%emt 0:00:00]} Rxd5 {[%emt 0:00:06]} 40. Rb5 {[%emt 0:00:01]} Rd2+ {[%emt 0:00:02]} 41. Ke3 {[%emt 0:00:03]} Rxh2 {[%emt 0:00:06]} 42. Rxg5+ {[%emt 0:00:02]} Kf6 {[%emt 0:00:02]} 43. Rh5 {[%emt 0:00:11][%mdl 8192]} (43. Rf5+ $11 Kg6 44. Ra5) 43... Ra2 $2 {[%emt 0:00:02]} (43... Rxh5 $19 44. gxh5 Ke5 45. f4+ Kd5) 44. a5 {[%emt 0:00:03]} Ra3+ {[%emt 0:00:05]} 45. Ke4 {[%emt 0:00:01]} (45. Kf2 $142) 45... e6 $17 {[%emt 0:00:03]} 46. Rb5 {[%emt 0:00:04]} (46. Rxh7 $17 {ist wohl besser.} d5+ (46... Rxa5 47. f4 $17) 47. Kd4) 46... d5+ $19 {[%emt 0:00:03]} 47. Kf4 {[%emt 0:00:00]} h6 {[%emt 0:00:06]} 48. Kg3 {[%emt 0:00:02]} Ke5 {[%emt 0:00:02]} (48... Ra1 $19 49. Kf2 Kg5) 49. Rb7 $17 {[%emt 0:00:07]} f6 {[%emt 0:00:03]} ({Vorzuziehen ist} 49... f5 $17 {...f4+ ist eine echte Drohung.} 50. gxf5 Kxf5) 50. Rb5 {[%emt 0:00:08]} (50. Ra7 $1 $15) 50... Ra2 $2 {[%emt 0:00:02]} (50... f5 $19 {Zielt auf ...fxg4 ab.} 51. gxf5 Kxf5) 51. Kh4 {[%emt 0:00:04][%mdl 8192]} (51. f4+ $15 Ke4 52. Rb6 Ra3+ (52... Rxa5 53. Rxe6+ Kd4 54. Rxf6 $16) 53. Kf2) 51... Kf4 $19 {[%emt 0:00:02][%cal Ra2h2] [#]} 52. Kh5 {[%emt 0:00:01]} Rh2+ $2 {[%emt 0:00:04]} (52... Kxf3 $19 {Droht ...d4 und aus.} 53. Rb6 Rxa5) 53. Kg6 $11 {[%emt 0:00:01]} Kxf3 {[%emt 0:00:01] Und jetzt ...Ra2 wäre schön.} 54. Kxf6 {[%emt 0:00:00]} d4 {[%emt 0:00:09]} 55. Kxe6 {[%emt 0:00:02]} d3 {[%emt 0:00:03][%cal Od3d2]} 56. Rd5 {[%emt 0:00:01]} Ke3 {[%emt 0:00:04] Weiss muss nun ...d2 beachten.} 57. Kf6 $2 {[%emt 0:00:05][%mdl 8192] Schwarz bringt die Sache ungefährdet zu Ende.} (57. Re5+ $15 Kd4 58. Rd5+ Kc4 59. Rd6) 57... Rg2 {[%emt 0:00:04]} (57... Rh1 $142 58. g5 hxg5) 58. Kf5 {[%emt 0:00:03]} Rg1 {[%emt 0:00:02] ( -> ...d2)} 59. Kg6 {[%emt 0:00:02]} Rxg4+ {[%emt 0:00:01] Schwarz setzt Matt.} 60. Kxh6 {[%emt 0:00:01]} d2 {[%emt 0:00:03]} 61. a6 {[%emt 0:00:06]} Ra4 {[%emt 0:00:02]} 62. Rd6 {[%emt 0:00:02] [#]} Rxa6 $3 {[%emt 0:00:03][%mdl 512]} 63. Rxa6 {[%emt 0:00:01]} d1=Q {[%emt 0:00:01] KQ-KR} ({Nicht} 63... d1=B 64. Re6+ Kf4 65. Re1 $11) 64. Re6+ {[%emt 0:00:01]} Kf4 {[%emt 0:00:01]} 65. Kg6 {[%emt 0:00:07]} Qg4+ {[%emt 0:00:03]} 66. Kf6 {[%emt 0:00:01]} Qg5+ {[%emt 0:00:04]} 67. Kf7 {[%emt 0:00:01]} Kf5 {[%emt 0:00:02]} 68. Rd6 {[%emt 0:00:07]} Qh5+ {[%emt 0:00:02]} 69. Ke7 {[%emt 0:00:01]} Qh7+ {[%emt 0:00:04]} 70. Kd8 {[%emt 0:00:01]} Ke5 {[%emt 0:00:02]} 71. Rd7 {[%emt 0:00:02]} Qg8+ {[%emt 0:00:09]} 72. Kc7 {[%emt 0:00:01]} Qf8 {[%emt 0:00:04]} 73. Kb7 {[%emt 0:00:12]} Qc5 {[%emt 0:00:02]} 74. Rd8 {[%emt 0:00:02]} Ke6 {[%emt 0:00:04]} 75. Rc8 {[%emt 0:00:06]} Qb5+ {[%emt 0:00:02]} 76. Kc7 {[%emt 0:00:02]} Ke7 {[%emt 0:00:02]} 77. Rb8 {[%emt 0:00:08]} Qc5+ {[%emt 0:00:01]} 78. Kb7 {[%emt 0:00:02]} Kd7 {[%emt 0:00:01]} 79. Ka6 {[%emt 0:00:07]} Qa3+ {[%emt 0:00:07]} 80. Kb6 {[%emt 0:00:01]} Qb4+ {[%emt 0:00:01]} 81. Ka7 {[%emt 0:00:04]} Qa5+ {[%emt 0:00:02]} 82. Kb7 {[%emt 0:00:01]} Qd5+ {[%emt 0:00:07]} 83. Ka7 {[%emt 0:00:05]} Kc7 {[%emt 0:00:02][%cal Rd5a2]} 84. Rb6 {[%emt 0:00:01]} Qc5 {[%emt 0:00:05]} 85. Ka8 {[%emt 0:00:01]} Kxb6 {[%emt 0:00:02] Gewichteter Fehlerwert: Weiß=0.73/Schwarz=0.43.  Verlustzug:     	Weiß=3     	---        Gewinn verpasst:   	---       	Schwarz=2     Fehler:       	Weiß=4     	Schwarz=3     Ungenau:       	Weiß=4     	Schwarz=4     OK:         	Weiß=11    	Schwarz=16    Bester:       	Weiß=6     	Schwarz=6} 0-1

[Event "Polish University-ch Open 2024"]
[Site "Lublin"]
[Date "2024.02.24"]
[Round "7.10"]
[White "Golenia, Wojciech"]
[Black "Pytel, Maciej"]
[Result "1/2-1/2"]
[ECO "A25"]
[WhiteElo "2212"]
[BlackElo "1965"]
[Annotator "RC"]
[PlyCount "116"]
[EventDate "2024.02.22"]
[EventType "swiss"]
[EventCountry "POL"]
[SourceTitle "playchess.com"]
[Source "ChessBase"]
[SourceQuality "1"]
[TimeControl "600+3"]

1. c4 {[%emt 0:00:02]} e5 {[%emt 0:00:02]} 2. Nc3 {[%emt 0:00:06]} Nc6 {[%emt 0:10:07]} 3. g3 {[%emt 0:00:01]} d6 {[%emt 0:00:00]} 4. Bg2 {[%emt 0:00:04]} Be6 {[%emt 0:00:00]} 5. d3 {[%emt 0:00:23]} Qd7 {[%emt 0:00:00]} 6. Rb1 {[%emt 0:00:53]} Nge7 {[%emt 0:00:00]} 7. Nd5 {[%emt 0:00:40]} Nd8 {[%emt 0:00:00]} 8. b4 {[%emt 0:00:37]} c6 {[%emt 0:00:00]} 9. Nxe7 {[%emt 0:00:03]} Bxe7 {[%emt 0:00:00]} 10. Nf3 {[%emt 0:00:09]} Bh3 {[%emt 0:00:00]} 11. O-O {[%emt 0:00:19]} Bxg2 {[%emt 0:00:00]} 12. Kxg2 {[%emt 0:00:02]} Ne6 {[%emt 0:00:00]} 13. Bb2 {[%emt 0:00:46]} O-O {[%emt 0:00:00]} 14. c5 {[%emt 0:00:32]} f6 {[%emt 0:00:00]} 15. cxd6 {[%emt 0:00:05]} Qxd6 {[%emt 0:00:00]} 16. Qb3 {[%emt 0:00:13]} Qd5 {[%emt 0:00:00]} 17. Qxd5 {[%emt 0:00:24]} cxd5 {[%emt 0:00:00]} 18. a3 {[%emt 0:00:15]} Rfc8 {[%emt 0:00:00]} 19. Rfc1 {[%emt 0:00:11]} Kf7 {[%emt 0:00:00]} 20. Kf1 {[%emt 0:00:13]} Ke8 {[%emt 0:00:00]} 21. e4 {[%emt 0:00:49]} dxe4 {[%emt 0:00:00]} 22. dxe4 {[%emt 0:00:03]} Rxc1+ {[%emt 0:00:00]} 23. Rxc1 {[%emt 0:00:03]} a5 {[%emt 0:00:00]} 24. bxa5 {[%emt 0:01:16]} Rxa5 {[%emt 0:00:00]} 25. Rc8+ {[%emt 0:00:03]} Kd7 {[%emt 0:00:00]} 26. Rc3 {[%emt 0:00:14]} Nc5 {[%emt 0:00:00]} 27. Nd2 {[%emt 0:00:12]} Rb5 {[%emt 0:00:00]} 28. Bc1 {[%emt 0:00:01]} Bd8 {[%emt 0:00:00]} 29. Rc4 {[%emt 0:00:26]} Ne6 {[%emt 0:00:00]} 30. a4 {[%emt 0:01:09]} Rc5 {[%emt 0:00:00]} 31. Ba3 {[%emt 0:00:09]} Rxc4 {[%emt 0:00:00]} 32. Nxc4 {[%emt 0:00:01]} Ng5 {[%emt 0:00:00]} 33. Nd2 {[%emt 0:00:16]} Ba5 {[%emt 0:00:00]} 34. Nb3 {[%emt 0:00:08]} Bc3 {[%emt 0:00:00]} 35. Ke2 {[%emt 0:00:06]} Ne6 {[%emt 0:00:00]} 36. Nc5+ {[%emt 0:00:11]} Nxc5 {[%emt 0:00:00]} 37. Bxc5 {[%emt 0:00:02]} g6 {[%emt 0:00:00]} 38. Kd3 {[%emt 0:00:03]} Ba5 {[%emt 0:00:00]} 39. Kc4 {[%emt 0:00:01]} Kc6 {[%emt 0:00:07]} 40. f3 {[%emt 0:00:14]} Bd8 {[%emt 0:00:21]} 41. Ba3 {[%emt 0:00:12]} f5 {[%emt 0:00:17]} 42. Bb2 {[%emt 0:00:02]} Bc7 {[%emt 0:00:06]} 43. Bc3 {[%emt 0:00:04]} fxe4 {[%emt 0:00:08]} 44. fxe4 {[%emt 0:00:01]} Bd6 {[%emt 0:00:05]} 45. Bd2 {[%emt 0:00:03]} Be7 {[%emt 0:00:05]} 46. Be3 {[%emt 0:00:03]} h5 {[%emt 0:00:12]} 47. Bd2 {[%emt 0:00:13]} Bd8 {[%emt 0:00:05]} 48. Bc3 {[%emt 0:00:03]} Bc7 {[%emt 0:00:03]} 49. Bb2 {[%emt 0:00:03]} Bd6 {[%emt 0:00:02]} 50. Ba1 {[%emt 0:00:02]} Bc7 {[%emt 0:00:01]} 51. Bc3 {[%emt 0:00:01]} Bd6 {[%emt 0:00:02]} 52. Ba5 {[%emt 0:00:04]} Be7 {[%emt 0:00:06]} 53. Bd2 {[%emt 0:00:05]} Bd8 {[%emt 0:00:03]} 54. Bh6 {[%emt 0:00:03]} Bb6 {[%emt 0:00:21]} 55. Bg7 {[%emt 0:00:06]} Bd4 {[%emt 0:00:04]} 56. Bf6 {[%emt 0:00:02]} Ba1 {[%emt 0:00:02]} 57. Be7 {[%emt 0:00:08]} Bd4 {[%emt 0:00:03]} 58. Bf6 {[%emt 0:00:05]} Ba1 {[%emt 0:00:01]} 1/2-1/2

[Event "Polish University-ch Open 2024"]
[Site "Lublin"]
[Date "2024.02.24"]
[Round "7.11"]
[White "Golenia, Jan"]
[Black "Babiarz, Arkadiusz"]
[Result "1-0"]
[ECO "D31"]
[WhiteElo "2221"]
[BlackElo "2159"]
[Annotator "RC"]
[PlyCount "83"]
[EventDate "2024.02.22"]
[EventType "swiss"]
[EventCountry "POL"]
[SourceTitle "playchess.com"]
[Source "ChessBase"]
[SourceQuality "1"]
[TimeControl "600+3"]

1. c4 {[%emt 0:00:02]} c6 {[%emt 0:00:01]} 2. d4 {[%emt 0:00:12]} d5 {[%emt 0:00:01]} 3. Nc3 {[%emt 0:00:01]} e6 {[%emt 0:00:01]} 4. Nf3 {[%emt 0:00:04]} dxc4 {[%emt 0:00:00]} 5. a4 {[%emt 0:00:03]} Bb4 {[%emt 0:00:02]} 6. e4 {[%emt 0:00:55]} b5 {[%emt 0:00:02]} 7. Bd2 {[%emt 0:00:07]} Bxc3 {[%emt 0:00:07]} 8. Bxc3 {[%emt 0:09:03]} a5 {[%emt 0:00:01]} 9. axb5 {[%emt 0:00:00]} cxb5 {[%emt 0:00:01]} 10. b3 {[%emt 0:00:00]} Bb7 {[%emt 0:00:02]} 11. bxc4 {[%emt 0:00:00]} b4 {[%emt 0:00:01]} 12. Qb1 {[%emt 0:00:12]} f5 {[%emt 0:03:49]} 13. d5 {[%emt 0:00:00]} Nf6 {[%emt 0:00:01]} 14. Ng5 {[%emt 0:00:00]} Qe7 {[%emt 0:01:57]} 15. Bxf6 {[%emt 0:00:00]} Qxf6 {[%emt 0:00:20]} 16. Nxe6 {[%emt 0:00:00]} Qc3+ {[%emt 0:01:08]} 17. Kd1 {[%emt 0:00:00]} Qe5 {[%emt 0:00:01]} 18. f4 {[%emt 0:00:00]} Qd6 {[%emt 0:00:11]} 19. e5 {[%emt 0:00:00]} Qe7 {[%emt 0:00:20]} 20. Qxf5 {[%emt 0:00:00]} g6 {[%emt 0:00:21]} 21. Qd3 {[%emt 0:00:00]} Bc8 {[%emt 0:00:55]} 22. Nd4 {[%emt 0:00:00]} Na6 {[%emt 0:00:09]} 23. Nc6 {[%emt 0:00:00]} Nc5 {[%emt 0:00:17]} 24. Qe3 {[%emt 0:00:00]} Qf8 {[%emt 0:00:09]} 25. Rxa5 {[%emt 0:00:05]} Rxa5 {[%emt 0:00:15]} 26. Nxa5 {[%emt 0:00:01]} Ba6 {[%emt 0:00:01]} 27. d6 {[%emt 0:00:04]} Na4 {[%emt 0:00:14]} 28. g3 {[%emt 0:00:08]} Nc3+ {[%emt 0:00:10]} 29. Kc2 {[%emt 0:00:03]} Qf5+ {[%emt 0:00:04]} 30. Bd3 {[%emt 0:00:01]} Qd7 {[%emt 0:00:04]} 31. Ra1 {[%emt 0:00:04]} O-O {[%emt 0:00:03]} 32. Qb6 {[%emt 0:00:04]} Qh3 {[%emt 0:00:08]} 33. Qxb4 {[%emt 0:00:01]} Qxh2+ {[%emt 0:00:15]} 34. Kxc3 {[%emt 0:00:01]} Qxg3 {[%emt 0:00:02]} 35. Nc6 {[%emt 0:00:06]} Rxf4 {[%emt 0:00:08]} 36. Rxa6 {[%emt 0:00:02]} Qe1+ {[%emt 0:00:01]} 37. Kb3 {[%emt 0:00:05]} Qd1+ {[%emt 0:00:03]} 38. Bc2 {[%emt 0:00:02]} Rf3+ {[%emt 0:00:04]} 39. Kb2 {[%emt 0:00:01]} Rf2 {[%emt 0:00:03]} 40. Qc3 {[%emt 0:00:08]} Qg4 {[%emt 0:00:12]} 41. Qd4 {[%emt 0:00:08]} Qg2 {[%emt 0:00:03]} 42. Qd5+ {[%emt 0:00:01]} 1-0

[Event "Polish University-ch Open 2024"]
[Site "Lublin"]
[Date "2024.02.24"]
[Round "7.12"]
[White "Niedbala, Bartlomiej"]
[Black "Bartkiewicz, Pawel"]
[Result "1-0"]
[ECO "A07"]
[WhiteElo "2382"]
[BlackElo "1910"]
[Annotator "RC"]
[PlyCount "80"]
[EventDate "2024.02.22"]
[EventType "swiss"]
[EventCountry "POL"]
[SourceTitle "playchess.com"]
[Source "ChessBase"]
[SourceQuality "1"]
[TimeControl "600+3"]

1. Nf3 {[%emt 0:00:01]} d5 {[%emt 0:00:01]} 2. g3 {[%emt 0:00:01]} Nf6 {[%emt 0:00:03]} 3. Bg2 {[%emt 0:00:01]} c6 {[%emt 0:00:02]} 4. O-O {[%emt 0:00:01]} Bf5 {[%emt 0:00:03]} 5. d3 {[%emt 0:00:01]} h6 {[%emt 0:00:01]} 6. Nbd2 {[%emt 0:00:02]} e6 {[%emt 0:00:02]} 7. b3 {[%emt 0:00:01]} Be7 {[%emt 0:00:02]} 8. Bb2 {[%emt 0:00:01]} O-O {[%emt 0:00:03]} 9. Qe1 {[%emt 0:00:01]} a5 {[%emt 0:00:02]} 10. a3 {[%emt 0:00:01]} Na6 {[%emt 0:00:12]} 11. Rd1 {[%emt 0:00:44]} Bh7 {[%emt 0:00:35]} 12. e4 {[%emt 0:00:04]} Qb6 {[%emt 0:00:56]} 13. Rb1 {[%emt 0:02:02]} Qc7 {[%emt 0:01:20]} 14. Be5 {[%emt 0:00:07]} Qc8 {[%emt 0:00:10]} 15. Bb2 {[%emt 0:00:10]} a4 {[%emt 0:00:21]} 16. b4 {[%emt 0:00:06]} c5 {[%emt 0:00:25]} 17. b5 {[%emt 0:00:02]} Nb8 {[%emt 0:01:22]} 18. c4 {[%emt 0:00:44]} dxe4 {[%emt 0:00:07]} 19. dxe4 {[%emt 0:00:01]} Nbd7 {[%emt 0:00:24]} 20. Rd1 {[%emt 0:00:07]} Nb6 {[%emt 0:00:22]} 21. Qe2 {[%emt 0:00:09]} Rd8 {[%emt 0:00:34]} 22. Rfe1 {[%emt 0:00:01]} Ne8 {[%emt 0:00:56]} 23. Ne5 {[%emt 0:00:51]} f6 {[%emt 0:00:46]} 24. Nd3 {[%emt 0:00:09]} Qc7 {[%emt 0:01:22]} 25. Nf4 {[%emt 0:00:10]} Qc8 {[%emt 0:00:17]} 26. Bh3 {[%emt 0:00:02]} Nc7 {[%emt 0:00:01]} 27. Nh5 {[%emt 0:00:20]} Bg6 {[%emt 0:00:32]} 28. Nf4 {[%emt 0:00:08]} Bf7 {[%emt 0:00:03]} 29. Bc3 {[%emt 0:00:15]} Qd7 {[%emt 0:00:14]} 30. Nd5 {[%emt 0:00:12]} Nbxd5 {[%emt 0:00:06]} 31. exd5 {[%emt 0:00:01]} Qe8 {[%emt 0:00:04]} 32. dxe6 {[%emt 0:00:12]} Bg6 {[%emt 0:00:01]} 33. Nf3 {[%emt 0:00:13]} b6 {[%emt 0:00:07]} 34. Nh4 {[%emt 0:00:05]} Bh7 {[%emt 0:00:02]} 35. Bg2 {[%emt 0:00:16]} Rxd1 {[%emt 0:00:06]} 36. Rxd1 {[%emt 0:00:01]} Rd8 {[%emt 0:00:01]} 37. Bc6 {[%emt 0:00:13]} Qf8 {[%emt 0:00:01]} 38. Bd7 {[%emt 0:00:11]} f5 {[%emt 0:00:01]} 39. Nf3 {[%emt 0:00:10]} f4 {[%emt 0:00:07]} 40. Ne5 {[%emt 0:00:06]} Ra8 {[%emt 0:00:06]} 1-0

[Event "Polish University-ch Open 2024"]
[Site "Lublin"]
[Date "2024.02.24"]
[Round "7.13"]
[White "Posluszny, Tomasz"]
[Black "Molenda, Marcin"]
[Result "1-0"]
[ECO "D43"]
[WhiteElo "2001"]
[BlackElo "2377"]
[Annotator "RC"]
[PlyCount "79"]
[EventDate "2024.02.22"]
[EventType "swiss"]
[EventCountry "POL"]
[SourceTitle "playchess.com"]
[Source "ChessBase"]
[SourceQuality "1"]
[TimeControl "600+3"]

1. d4 {[%emt 0:00:02]} Nf6 {[%emt 0:00:01]} 2. Nf3 {[%emt 0:00:01]} d5 {[%emt 0:00:03]} 3. c4 {[%emt 0:00:05]} e6 {[%emt 0:00:01]} 4. Nc3 {[%emt 0:00:01]} c6 {[%emt 0:00:08]} 5. Qd3 {[%emt 0:00:40]} Nbd7 {[%emt 0:00:12]} 6. e4 {[%emt 0:00:27]} dxe4 {[%emt 0:00:03]} 7. Nxe4 {[%emt 0:00:01]} Nxe4 {[%emt 0:00:01]} 8. Qxe4 {[%emt 0:00:01]} Nf6 {[%emt 0:00:01]} 9. Qe3 {[%emt 0:00:27]} Bb4+ {[%emt 0:00:26]} 10. Bd2 {[%emt 0:00:01]} Bxd2+ {[%emt 0:00:04]} 11. Qxd2 {[%emt 0:00:09]} Ne4 {[%emt 0:01:23]} 12. Qc2 {[%emt 0:00:42]} Qa5+ {[%emt 0:00:28]} 13. Nd2 {[%emt 0:00:02]} Nxd2 {[%emt 0:00:13]} 14. Qxd2 {[%emt 0:00:01]} Qxd2+ {[%emt 0:00:01]} 15. Kxd2 {[%emt 0:00:01]} Ke7 {[%emt 0:00:02]} 16. Be2 {[%emt 0:00:18]} Rd8 {[%emt 0:00:04]} 17. Kc3 {[%emt 0:00:01]} Bd7 {[%emt 0:00:04]} 18. Rhd1 {[%emt 0:00:25]} Be8 {[%emt 0:00:04]} 19. Bf3 {[%emt 0:00:43]} g5 {[%emt 0:00:22]} 20. g3 {[%emt 0:01:16]} Rac8 {[%emt 0:00:10]} 21. Rac1 {[%emt 0:00:23]} Rc7 {[%emt 0:00:25]} 22. Rc2 {[%emt 0:00:33]} f5 {[%emt 0:00:20]} 23. Re2 {[%emt 0:00:19]} Kf6 {[%emt 0:00:02]} 24. b3 {[%emt 0:00:19]} Bf7 {[%emt 0:00:20]} 25. Red2 {[%emt 0:00:33]} Rcd7 {[%emt 0:00:20]} 26. b4 {[%emt 0:00:21]} h5 {[%emt 0:00:29]} 27. a4 {[%emt 0:00:10]} h4 {[%emt 0:00:14]} 28. b5 {[%emt 0:00:08]} cxb5 {[%emt 0:01:23]} 29. axb5 {[%emt 0:00:01]} Rc7 {[%emt 0:00:09]} 30. c5 {[%emt 0:00:25]} Be8 {[%emt 0:00:02]} 31. Kb4 {[%emt 0:00:01]} a6 {[%emt 0:00:09]} 32. b6 {[%emt 0:00:26]} Rh7 {[%emt 0:00:03]} 33. c6 {[%emt 0:00:16]} Bxc6 {[%emt 0:00:19]} 34. Bxc6 {[%emt 0:00:01]} bxc6 {[%emt 0:00:01]} 35. Kc5 {[%emt 0:00:09]} Rc8 {[%emt 0:00:47]} 36. Rb2 {[%emt 0:00:12]} Rd7 {[%emt 0:01:18]} 37. b7 {[%emt 0:00:22]} Rb8 {[%emt 0:00:00]} 38. Kxc6 {[%emt 0:00:02]} Ke7 {[%emt 0:00:01]} 39. Ra1 {[%emt 0:00:44]} Kd8 {[%emt 0:01:12]} 40. Rxa6 {[%emt 0:00:09]} 1-0

[Event "Polish University-ch Open 2024"]
[Site "Lublin"]
[Date "2024.02.24"]
[Round "7.14"]
[White "Brzezinski, Mateusz"]
[Black "Kukula, Karol"]
[Result "1-0"]
[ECO "A47"]
[WhiteElo "2176"]
[BlackElo "2011"]
[Annotator "RC"]
[PlyCount "72"]
[EventDate "2024.02.22"]
[EventType "swiss"]
[EventCountry "POL"]
[SourceTitle "playchess.com"]
[Source "ChessBase"]
[SourceQuality "1"]
[TimeControl "600+3"]

1. d4 {[%emt 0:00:01]} Nf6 {[%emt 0:00:02]} 2. Nf3 {[%emt 0:00:01]} e6 {[%emt 0:00:01]} 3. Bf4 {[%emt 0:00:02]} b6 {[%emt 0:00:18]} 4. e3 {[%emt 0:00:05]} Bb7 {[%emt 0:00:01]} 5. h3 {[%emt 0:00:02]} g6 {[%emt 0:01:12]} 6. Nbd2 {[%emt 0:00:03]} Bg7 {[%emt 0:00:01]} 7. Bd3 {[%emt 0:00:12]} d6 {[%emt 0:00:09]} 8. O-O {[%emt 0:00:04]} Nbd7 {[%emt 0:00:02]} 9. Bh2 {[%emt 0:00:04]} O-O {[%emt 0:00:04]} 10. c4 {[%emt 0:00:09]} Qe7 {[%emt 0:00:06]} 11. Rc1 {[%emt 0:02:17]} e5 {[%emt 0:00:39]} 12. Bb1 {[%emt 0:00:01]} Rfe8 {[%emt 0:03:21]} 13. b4 {[%emt 0:00:07]} a5 {[%emt 0:00:25]} 14. a3 {[%emt 0:00:12]} axb4 {[%emt 0:01:15]} 15. axb4 {[%emt 0:00:01]} exd4 {[%emt 0:03:12]} 16. exd4 {[%emt 0:00:19]} Qd8 {[%emt 0:00:00]} 17. Qb3 {[%emt 0:00:17]} Ne4 {[%emt 0:00:00]} 18. d5 {[%emt 0:01:32]} Nxd2 {[%emt 0:00:00]} 19. Nxd2 {[%emt 0:00:01]} Nf6 {[%emt 0:00:00]} 20. Bf4 {[%emt 0:00:30]} b5 {[%emt 0:00:00]} 21. Bd3 {[%emt 0:00:09]} bxc4 {[%emt 0:00:01]} 22. Bxc4 {[%emt 0:00:01]} Ne4 {[%emt 0:00:04]} 23. Nf3 {[%emt 0:00:22]} Nf6 {[%emt 0:00:08]} 24. Be3 {[%emt 0:00:28]} Ne4 {[%emt 0:00:08]} 25. Bb5 {[%emt 0:00:25]} Re7 {[%emt 0:00:01]} 26. Rfd1 {[%emt 0:00:06]} Nf6 {[%emt 0:00:11]} 27. Bc4 {[%emt 0:00:34]} Nd7 {[%emt 0:00:00]} 28. Nd4 {[%emt 0:00:19]} Ne5 {[%emt 0:00:06]} 29. Bf1 {[%emt 0:00:09]} Re8 {[%emt 0:00:00]} 30. Nc6 {[%emt 0:00:17]} Bxc6 {[%emt 0:00:00]} 31. dxc6 {[%emt 0:00:01]} Qb8 {[%emt 0:00:01]} 32. f4 {[%emt 0:00:13]} Nxc6 {[%emt 0:00:11]} 33. Rxc6 {[%emt 0:00:05]} Re4 {[%emt 0:00:00]} 34. Rc4 {[%emt 0:00:09]} Qe8 {[%emt 0:00:02]} 35. Bf2 {[%emt 0:00:06]} Rb8 {[%emt 0:00:03]} 36. b5 {[%emt 0:00:11]} Rxc4 {[%emt 0:00:07]} 1-0